[Event "DLM Youth 2024"]
[Site "Tuebingen"]
[Date "2024.10.05"]
[Round "5"]
[White "Geist, Tim"]
[Black "Steinbrenner, Peter"]
[Result "0-1"]
[ECO "B86"]
[WhiteElo "1977"]
[BlackElo "1952"]
[Annotator "RC"]
[PlyCount "84"]
[EventDate "2024.10.03"]
[EventType "team-swiss"]
[EventRounds "7"]
[EventCountry "GER"]
[SourceTitle "playchess.com"]
[Source "ChessBase"]
[SourceQuality "1"]
[TimeControl "40/5400+30:1800+30"]

1. e4 {[%emt 0:00:30]} c5 {[%emt 0:00:26]} 2. Nf3 {[%emt 0:00:07]} d6 {[%emt 0:00:08]} 3. d4 {[%emt 0:00:04]} cxd4 {[%emt 0:00:14]} 4. Nxd4 {[%emt 0:00:03]} Nf6 {[%emt 0:00:10]} 5. Nc3 {[%emt 0:00:03]} a6 {[%emt 0:00:05]} 6. Bc4 {[%emt 0:00:34]} e6 {[%emt 0:00:17]} 7. Bb3 {[%emt 0:00:09]} Be7 {[%emt 0:00:33]} 8. g4 {[%emt 0:00:27]} h6 {[%emt 0:01:28]} 9. Be3 {[%emt 0:01:50]} Nbd7 {[%emt 0:02:58]} 10. Bxe6 {[%emt 0:02:01]} fxe6 {[%emt 0:00:57]} 11. Nxe6 {[%emt 0:00:05]} Qa5 {[%emt 0:00:12]} 12. Nxg7+ {[%emt 0:01:16]} Kf7 {[%emt 0:00:50]} 13. Nf5 {[%emt 0:00:11]} Ne5 {[%emt 0:01:59]} 14. f3 {[%emt 0:25:40]} Bxf5 {[%emt 0:03:56]} 15. gxf5 {[%emt 0:00:03]} Rac8 {[%emt 0:05:00]} 16. Kf1 {[%emt 0:13:27]} Qb4 {[%emt 0:11:18]} 17. Rb1 {[%emt 0:17:34]} Qc4+ {[%emt 0:00:48]} 18. Kf2 {[%emt 0:01:07]} b5 {[%emt 0:04:06]} 19. Qd4 {[%emt 0:16:40]} Qxd4 {[%emt 0:05:02]} 20. Bxd4 {[%emt 0:00:05]} b4 {[%emt 0:00:13]} 21. Ne2 {[%emt 0:00:15]} Rxc2 {[%emt 0:00:22]} 22. h3 {[%emt 0:03:40]} Nh5 {[%emt 0:06:19]} 23. Ke3 {[%emt 0:09:09]} Rhc8 {[%emt 0:02:24]} 24. Rhd1 {[%emt 0:00:45]} R2c7 {[%emt 0:12:22]} 25. b3 {[%emt 0:02:07]} Rc2 {[%emt 0:06:06]} 26. Bb2 {[%emt 0:02:13]} Bg5+ {[%emt 0:00:45]} 27. f4 {[%emt 0:00:17]} Rxe2+ {[%emt 0:00:07]} 28. Kxe2 {[%emt 0:00:08]} Nxf4+ {[%emt 0:00:05]} 29. Kf1 {[%emt 0:00:32]} Ned3 {[%emt 0:05:28]} 30. Bc1 {[%emt 0:01:28]} Ke7 {[%emt 0:01:43]} 31. Bxf4 {[%emt 0:01:10]} Nxf4 {[%emt 0:00:08]} 32. Rd4 {[%emt 0:01:04]} a5 {[%emt 0:01:54]} 33. Rbd1 {[%emt 0:00:36]} Rc6 {[%emt 0:00:53]} 34. R4d2 {[%emt 0:01:36]} Bf6 {[%emt 0:01:11]} 35. Rf2 {[%emt 0:00:32]} Be5 {[%emt 0:00:22]} 36. h4 {[%emt 0:00:01]} Rc3 {[%emt 0:00:40]} 37. h5 {[%emt 0:00:53]} Rh3 {[%emt 0:00:38]} 38. Kg1 {[%emt 0:00:21]} Rxh5 {[%emt 0:00:18]} 39. Rc2 {[%emt 0:00:05]} Bc3 {[%emt 0:02:35]} 40. Rf1 {[%emt 0:01:08]} Bd4+ {[%emt 0:00:58]} 41. Rff2 {[%emt 0:00:55]} Bxf2+ {[%emt 0:00:24]} 42. Rxf2 {[%emt 0:00:05]} Nh3+ {[%emt 0:00:23]} 0-1

[Event "DLM Youth 2024"]
[Site "Tuebingen"]
[Date "2024.10.05"]
[Round "5"]
[White "Goldmann, David"]
[Black "Klaska, Philipp Leon"]
[Result "0-1"]
[ECO "B34"]
[WhiteElo "1969"]
[BlackElo "2263"]
[Annotator "RC"]
[PlyCount "44"]
[EventDate "2024.10.03"]
[EventType "team-swiss"]
[EventRounds "7"]
[EventCountry "GER"]
[SourceTitle "playchess.com"]
[Source "ChessBase"]
[SourceQuality "1"]
[TimeControl "40/5400+30:1800+30"]

1. e4 {[%emt 0:00:01]} c5 {[%emt 0:00:15]} 2. Nf3 {[%emt 0:01:03]} g6 {[%emt 0:00:19]} 3. d4 {[%emt 0:00:06]} cxd4 {[%emt 0:00:06]} 4. Nxd4 {[%emt 0:01:00]} Bg7 {[%emt 0:00:07]} 5. Be3 {[%emt 0:01:18]} Nc6 {[%emt 0:00:50]} 6. c3 {[%emt 0:00:12]} Nf6 {[%emt 0:02:35]} 7. f3 {[%emt 0:02:33]} O-O {[%emt 0:03:17]} 8. Bb5 {[%emt 0:00:26]} e5 {[%emt 0:19:59]} 9. Nb3 {[%emt 0:02:40]} d5 {[%emt 0:03:45]} 10. exd5 {[%emt 0:01:35]} Nxd5 {[%emt 0:00:24]} 11. Bc5 {[%emt 0:00:08]} Re8 {[%emt 0:07:04]} 12. O-O {[%emt 0:01:45]} Be6 {[%emt 0:14:09]} 13. N1d2 {[%emt 0:01:23]} Qc7 {[%emt 0:05:38]} 14. Qe2 {[%emt 0:06:45]} Nf4 {[%emt 0:07:47]} 15. Qf2 {[%emt 0:00:35]} Bh3 {[%emt 0:02:45]} 16. Ne4 {[%emt 0:01:36]} Bxg2 {[%emt 0:00:57]} 17. Qh4 {[%emt 0:01:17]} Bxf1 {[%emt 0:00:59]} 18. Rxf1 {[%emt 0:01:06]} Qd8 {[%emt 0:02:27]} 19. Qxd8 {[%emt 0:00:38]} Rexd8 {[%emt 0:00:43]} 20. Nd6 {[%emt 0:00:14]} a6 {[%emt 0:04:19]} 21. Bc4 {[%emt 0:00:10]} Rxd6 {[%emt 0:00:38]} 22. Bxd6 {[%emt 0:00:27]} b5 {[%emt 0:00:05]} 0-1

[Event "DLM Youth 2024"]
[Site "Tuebingen"]
[Date "2024.10.05"]
[Round "5"]
[White "Haug, Mara"]
[Black "Reuter, Elisa"]
[Result "1-0"]
[ECO "B33"]
[WhiteElo "1958"]
[BlackElo "1985"]
[Annotator "RC"]
[PlyCount "73"]
[EventDate "2024.10.03"]
[EventType "team-swiss"]
[EventRounds "7"]
[EventCountry "GER"]
[SourceTitle "playchess.com"]
[Source "ChessBase"]
[SourceQuality "1"]
[TimeControl "40/5400+30:1800+30"]

1. e4 {[%emt 0:00:06]} c5 {[%emt 0:00:02]} 2. Nf3 {[%emt 0:00:09]} Nc6 {[%emt 0:00:04]} 3. d4 cxd4 {[%emt 0:00:04]} 4. Nxd4 {[%emt 0:00:14]} Nf6 {[%emt 0:00:02]} 5. Nc3 {[%emt 0:00:12]} e5 {[%emt 0:00:03]} 6. Ndb5 {[%emt 0:00:07]} d6 {[%emt 0:00:03]} 7. Bg5 {[%emt 0:00:12]} a6 {[%emt 0:00:03]} 8. Na3 {[%emt 0:00:08]} b5 {[%emt 0:00:04]} 9. Bxf6 gxf6 {[%emt 0:00:09]} 10. Nd5 {[%emt 0:00:14]} f5 {[%emt 0:00:21]} 11. c3 {[%emt 0:00:16]} Bg7 {[%emt 0:01:05]} 12. exf5 {[%emt 0:00:10]} Bxf5 {[%emt 0:06:48]} 13. Nc2 {[%emt 0:00:34]} O-O {[%emt 0:02:37]} 14. Nce3 {[%emt 0:00:07]} Be6 {[%emt 0:00:43]} 15. Bd3 {[%emt 0:00:20]} f5 {[%emt 0:07:02]} 16. O-O {[%emt 0:00:22]} Ne7 {[%emt 0:09:12]} 17. Bc2 {[%emt 0:05:33]} Nxd5 {[%emt 0:16:22]} 18. Nxd5 {[%emt 0:01:01]} Kh8 {[%emt 0:07:21]} 19. Bb3 {[%emt 0:03:15]} f4 {[%emt 0:12:42]} 20. f3 {[%emt 0:08:50]} Rf5 {[%emt 0:04:42]} 21. Qe1 {[%emt 0:02:45]} Bxd5 {[%emt 0:12:06]} 22. Bxd5 {[%emt 0:00:07]} Ra7 {[%emt 0:00:13]} 23. a4 {[%emt 0:04:29]} bxa4 {[%emt 0:02:53]} 24. Rxa4 {[%emt 0:01:32]} Bf8 {[%emt 0:05:23]} 25. Kh1 {[%emt 0:15:06]} Be7 {[%emt 0:09:54]} 26. Qf2 {[%emt 0:01:59]} Qc7 {[%emt 0:01:44]} 27. Rfa1 {[%emt 0:10:32]} a5 {[%emt 0:00:28]} 28. b4 {[%emt 0:05:16]} Rf8 {[%emt 0:00:05]} 29. bxa5 {[%emt 0:08:06]} Rb8 {[%emt 0:00:11]} 30. a6 {[%emt 0:04:43]} Qc5 {[%emt 0:01:10]} 31. Qxc5 {[%emt 0:02:13]} dxc5 {[%emt 0:00:03]} 32. Bb7 {[%emt 0:01:16]} Bd6 {[%emt 0:00:08]} 33. Kg1 {[%emt 0:01:18]} Kg7 {[%emt 0:00:04]} 34. Rb1 {[%emt 0:02:27]} Kf6 {[%emt 0:00:49]} 35. Ra2 {[%emt 0:04:40]} Ke7 {[%emt 0:00:13]} 36. Rb6 {[%emt 0:03:43]} Bc7 {[%emt 0:00:35]} 37. Rh6 {[%emt 0:04:42]} 1-0

[Event "DLM Youth 2024"]
[Site "Tuebingen"]
[Date "2024.10.05"]
[Round "5"]
[White "Bundan, Edward"]
[Black "Voigt, Anastasia"]
[Result "1/2-1/2"]
[ECO "C77"]
[WhiteElo "1952"]
[BlackElo "2037"]
[Annotator "RC"]
[PlyCount "145"]
[EventDate "2024.10.03"]
[EventType "team-swiss"]
[EventRounds "7"]
[EventCountry "GER"]
[SourceTitle "playchess.com"]
[Source "ChessBase"]
[SourceQuality "1"]
[TimeControl "40/5400+30:1800+30"]

1. e4 {[%emt 0:00:02]} e5 {[%emt 0:00:04]} 2. Nf3 {[%emt 0:00:03]} Nc6 {[%emt 0:00:05]} 3. Bb5 {[%emt 0:00:04]} a6 {[%emt 0:00:07]} 4. Ba4 {[%emt 0:00:05]} Nf6 {[%emt 0:00:04]} 5. d3 {[%emt 0:00:24]} d6 {[%emt 0:00:21]} 6. c3 {[%emt 0:00:31]} g6 {[%emt 0:00:14]} 7. O-O {[%emt 0:07:59]} Bg7 {[%emt 0:00:32]} 8. h3 {[%emt 0:00:24]} O-O {[%emt 0:00:28]} 9. Re1 {[%emt 0:00:58]} b5 {[%emt 0:00:20]} 10. Bc2 {[%emt 0:00:23]} Bb7 {[%emt 0:01:43]} 11. a4 {[%emt 0:05:54]} Nb8 {[%emt 0:05:04]} 12. axb5 {[%emt 0:02:47]} axb5 {[%emt 0:00:07]} 13. Rxa8 {[%emt 0:00:22]} Bxa8 {[%emt 0:00:04]} 14. d4 {[%emt 0:01:58]} Nbd7 {[%emt 0:00:29]} 15. Nbd2 {[%emt 0:01:55]} Re8 {[%emt 0:00:54]} 16. d5 {[%emt 0:06:31]} c6 {[%emt 0:03:18]} 17. c4 {[%emt 0:01:12]} bxc4 {[%emt 0:04:33]} 18. dxc6 {[%emt 0:03:28]} Nb6 {[%emt 0:02:33]} 19. Qe2 {[%emt 0:02:01]} Bxc6 {[%emt 0:17:00]} 20. Nxc4 {[%emt 0:00:44]} Nxc4 {[%emt 0:01:33]} 21. Qxc4 {[%emt 0:00:18]} Qa8 {[%emt 0:00:45]} 22. Bg5 {[%emt 0:08:47]} d5 {[%emt 0:06:05]} 23. exd5 {[%emt 0:03:52]} Bxd5 {[%emt 0:00:34]} 24. Qe2 {[%emt 0:07:35]} Qb7 {[%emt 0:22:24]} 25. Ba4 {[%emt 0:02:10]} Rb8 {[%emt 0:03:09]} 26. Qxe5 {[%emt 0:07:22]} Ne4 {[%emt 0:03:13]} 27. Qe7 {[%emt 0:04:19]} Nxg5 {[%emt 0:04:13]} 28. Nxg5 {[%emt 0:01:02]} Qxb2 {[%emt 0:18:39]} 29. Qd6 {[%emt 0:13:23]} Bc4 {[%emt 0:02:20]} 30. Bc2 {[%emt 0:06:00]} Rf8 {[%emt 0:01:29]} 31. Ba4 {[%emt 0:02:29]} Qf6 {[%emt 0:01:40]} 32. Qxf6 {[%emt 0:00:52]} Bxf6 {[%emt 0:00:04]} 33. Ne4 {[%emt 0:00:27]} Bg7 {[%emt 0:00:46]} 34. Nd6 {[%emt 0:00:40]} Be6 {[%emt 0:00:16]} 35. Ne8 {[%emt 0:01:16]} Bc3 {[%emt 0:00:45]} 36. Re3 {[%emt 0:00:34]} Bd4 {[%emt 0:00:26]} 37. Re4 {[%emt 0:01:06]} Bc3 {[%emt 0:00:31]} 38. Re3 {[%emt 0:00:46]} Bb2 {[%emt 0:00:18]} 39. Re2 {[%emt 0:00:33]} Ba1 {[%emt 0:00:25]} 40. Re1 {[%emt 0:01:21]} Bh8 {[%emt 0:00:29]} 41. Re2 {[%emt 0:31:46]} h5 {[%emt 0:07:03]} 42. f4 {[%emt 0:00:00]} Bd4+ {[%emt 0:02:25]} 43. Kh2 {[%emt 0:00:00]} h4 {[%emt 0:01:39]} 44. g3 {[%emt 0:00:00]} hxg3+ {[%emt 0:00:34]} 45. Kxg3 {[%emt 0:00:00]} Kh7 {[%emt 0:01:26]} 46. Re4 {[%emt 0:00:00]} Bc3 {[%emt 0:02:03]} 47. Nc7 {[%emt 0:00:00]} Bf5 {[%emt 0:01:40]} 48. Re8 {[%emt 0:00:00]} Kg7 {[%emt 0:01:19]} 49. Rxf8 {[%emt 0:00:00]} Kxf8 {[%emt 0:00:05]} 50. Nb5 {[%emt 0:00:00]} Be1+ {[%emt 0:00:31]} 51. Kh2 {[%emt 0:00:00]} Bd7 {[%emt 0:00:41]} 52. Nc3 {[%emt 0:00:00]} Be6 {[%emt 0:02:07]} 53. Ne4 {[%emt 0:00:00]} Ke7 {[%emt 0:00:48]} 54. Bd1 {[%emt 0:00:00]} Bd5 {[%emt 0:01:08]} 55. Ng3 {[%emt 0:00:00]} Bd2 {[%emt 0:02:45]} 56. f5 {[%emt 0:00:00]} g5 {[%emt 0:02:45]} 57. Nh5 {[%emt 0:00:00]} Be1 {[%emt 0:02:59]} 58. Kg1 {[%emt 0:00:00]} Kd6 {[%emt 0:02:11]} 59. Kf1 {[%emt 0:00:00]} Bc3 {[%emt 0:00:32]} 60. Bg4 {[%emt 0:00:00]} Ke5 {[%emt 0:01:37]} 61. Ke2 {[%emt 0:00:00]} Be4 {[%emt 0:00:15]} 62. Ng3 {[%emt 0:00:00]} Bc2 {[%emt 0:00:31]} 63. Kf2 {[%emt 0:01:15]} Bd2 {[%emt 0:00:50]} 64. Ke2 {[%emt 0:01:01]} Bf4 {[%emt 0:00:11]} 65. Kf2 {[%emt 0:00:48]} Bxg3+ {[%emt 0:00:31]} 66. Kxg3 {[%emt 0:00:14]} Bxf5 {[%emt 0:00:10]} 67. Bh5 {[%emt 0:00:08]} Bxh3 {[%emt 0:05:00]} 68. Kxh3 {[%emt 0:00:09]} f5 {[%emt 0:00:05]} 69. Kg3 {[%emt 0:02:10]} Ke4 {[%emt 0:00:13]} 70. Be2 {[%emt 0:00:51]} Ke3 {[%emt 0:01:00]} 71. Bg4 {[%emt 0:00:39]} fxg4 {[%emt 0:00:40]} 72. Kxg4 {[%emt 0:00:06]} Ke4 {[%emt 0:00:04]} 73. Kxg5 {[%emt 0:00:08]} 1/2-1/2

[Event "DLM Youth 2024"]
[Site "Tuebingen"]
[Date "2024.10.05"]
[Round "5"]
[White "Bauer, Laura Sophie"]
[Black "Mueller, Riyanna"]
[Result "1/2-1/2"]
[ECO "B01"]
[WhiteElo "1943"]
[BlackElo "2014"]
[Annotator "RC"]
[PlyCount "53"]
[EventDate "2024.10.03"]
[EventType "team-swiss"]
[EventRounds "7"]
[EventCountry "GER"]
[SourceTitle "playchess.com"]
[Source "ChessBase"]
[SourceQuality "1"]
[TimeControl "40/5400+30:1800+30"]

1. e4 {[%emt 0:00:02]} d5 {[%emt 0:00:07]} 2. exd5 {[%emt 0:00:06]} Qxd5 {[%emt 0:00:06]} 3. Nc3 {[%emt 0:00:05]} Qd8 {[%emt 0:00:12]} 4. d4 {[%emt 0:00:12]} Nf6 {[%emt 0:00:11]} 5. Nf3 {[%emt 0:00:16]} Bg4 {[%emt 0:00:29]} 6. Bf4 {[%emt 0:00:50]} c6 {[%emt 0:01:01]} 7. Be2 {[%emt 0:03:25]} e6 {[%emt 0:00:58]} 8. h3 {[%emt 0:00:28]} Bxf3 {[%emt 0:00:16]} 9. Bxf3 {[%emt 0:00:24]} Nbd7 {[%emt 0:01:36]} 10. O-O {[%emt 0:01:13]} Be7 {[%emt 0:00:15]} 11. Qd2 {[%emt 0:02:54]} O-O {[%emt 0:00:24]} 12. Rad1 {[%emt 0:01:27]} Nb6 {[%emt 0:00:30]} 13. Qe2 {[%emt 0:02:19]} Nbd5 {[%emt 0:00:51]} 14. Nxd5 {[%emt 0:00:49]} Nxd5 {[%emt 0:06:06]} 15. Be5 {[%emt 0:06:20]} Bf6 {[%emt 0:05:00]} 16. c4 {[%emt 0:02:01]} Nb6 {[%emt 0:00:34]} 17. b3 {[%emt 0:01:32]} Qe7 {[%emt 0:00:43]} 18. Rd3 {[%emt 0:06:12]} Rfd8 {[%emt 0:03:44]} 19. Rfd1 {[%emt 0:01:45]} a5 {[%emt 0:00:49]} 20. Bxf6 {[%emt 0:03:10]} Qxf6 {[%emt 0:00:12]} 21. d5 {[%emt 0:01:27]} exd5 {[%emt 0:05:41]} 22. cxd5 {[%emt 0:04:02]} cxd5 {[%emt 0:00:35]} 23. Bxd5 {[%emt 0:00:47]} Nxd5 {[%emt 0:00:26]} 24. Rxd5 {[%emt 0:00:11]} Rxd5 {[%emt 0:00:35]} 25. Rxd5 {[%emt 0:00:09]} Qc6 {[%emt 0:00:11]} 26. Qd2 {[%emt 0:03:15]} h6 {[%emt 0:00:37]} 27. Rd8+ {[%emt 0:07:40]} 1/2-1/2

[Event "DLM Youth 2024"]
[Site "Tuebingen"]
[Date "2024.10.05"]
[Round "5"]
[White "Kovalskyy, Alicia"]
[Black "Wartenberg, Alissa"]
[Result "1-0"]
[ECO "C54"]
[WhiteElo "1908"]
[BlackElo "1813"]
[Annotator "RC"]
[PlyCount "61"]
[EventDate "2024.10.03"]
[EventType "team-swiss"]
[EventRounds "7"]
[EventCountry "GER"]
[SourceTitle "playchess.com"]
[Source "ChessBase"]
[SourceQuality "1"]
[TimeControl "40/5400+30:1800+30"]

1. e4 {[%emt 0:00:01]} e5 {[%emt 0:00:04]} 2. Nf3 {[%emt 0:00:07]} Nc6 {[%emt 0:00:04]} 3. Bc4 {[%emt 0:00:06]} Bc5 {[%emt 0:00:09]} 4. c3 {[%emt 0:00:06]} Nf6 {[%emt 0:00:33]} 5. d3 {[%emt 0:00:09]} O-O {[%emt 0:00:14]} 6. O-O {[%emt 0:00:09]} d6 {[%emt 0:02:47]} 7. h3 {[%emt 0:00:12]} h6 {[%emt 0:00:13]} 8. Re1 {[%emt 0:00:40]} Re8 {[%emt 0:02:22]} 9. Nbd2 {[%emt 0:03:01]} a6 {[%emt 0:04:26]} 10. Bb3 {[%emt 0:00:16]} Nh5 {[%emt 0:14:19]} 11. d4 {[%emt 0:07:04]} Ba7 {[%emt 0:08:04]} 12. Nxe5 {[%emt 0:03:20]} dxe5 {[%emt 0:03:26]} 13. Qxh5 {[%emt 0:00:33]} Qf6 {[%emt 0:00:41]} 14. Re3 {[%emt 0:04:00]} Rf8 {[%emt 0:25:42]} 15. Rf3 {[%emt 0:03:49]} Qe7 {[%emt 0:01:20]} 16. d5 {[%emt 0:03:13]} Na5 {[%emt 0:00:29]} 17. Bc2 {[%emt 0:02:53]} b5 {[%emt 0:01:12]} 18. Rg3 {[%emt 0:02:34]} Qc5 {[%emt 0:07:59]} 19. Rf3 {[%emt 0:03:29]} Qd6 {[%emt 0:02:30]} 20. Nf1 {[%emt 0:02:28]} Nc4 {[%emt 0:06:28]} 21. Rg3 {[%emt 0:06:47]} Qf6 {[%emt 0:01:10]} 22. Ne3 {[%emt 0:01:33]} Bxe3 {[%emt 0:01:48]} 23. Bxe3 {[%emt 0:00:16]} Nxb2 {[%emt 0:01:42]} 24. Bxh6 {[%emt 0:01:05]} Re8 {[%emt 0:02:27]} 25. Bxg7 {[%emt 0:00:34]} Qxg7 {[%emt 0:00:12]} 26. Rxg7+ {[%emt 0:00:27]} Kxg7 {[%emt 0:00:05]} 27. f4 {[%emt 0:00:28]} Nc4 {[%emt 0:02:28]} 28. f5 {[%emt 0:01:08]} Bd7 {[%emt 0:03:11]} 29. Qg5+ {[%emt 0:02:02]} Kh7 {[%emt 0:00:12]} 30. f6 {[%emt 0:00:07]} Rg8 {[%emt 0:00:02]} 31. Qh5# {[%emt 0:00:04]} 1-0

[Event "DLM Youth 2024"]
[Site "Tuebingen"]
[Date "2024.10.05"]
[Round "5"]
[White "Bezsonna, Polina"]
[Black "Jacobasch, Ronja"]
[Result "1-0"]
[ECO "B07"]
[WhiteElo "1905"]
[BlackElo "1879"]
[Annotator "RC"]
[PlyCount "83"]
[EventDate "2024.10.03"]
[EventType "team-swiss"]
[EventRounds "7"]
[EventCountry "GER"]
[SourceTitle "playchess.com"]
[Source "ChessBase"]
[SourceQuality "1"]
[TimeControl "40/5400+30:1800+30"]

1. e4 {[%emt 0:00:07]} d6 {[%emt 0:00:03]} 2. d4 {[%emt 0:00:05]} Nf6 {[%emt 0:00:06]} 3. Nc3 {[%emt 0:00:07]} g6 {[%emt 0:00:10]} 4. Be3 {[%emt 0:00:09]} Bg7 {[%emt 0:00:17]} 5. Qd2 {[%emt 0:00:07]} O-O {[%emt 0:17:44]} 6. O-O-O {[%emt 0:00:15]} c6 {[%emt 0:05:45]} 7. f3 {[%emt 0:00:52]} b5 {[%emt 0:02:11]} 8. Bh6 {[%emt 0:00:19]} Qa5 {[%emt 0:09:03]} 9. h4 {[%emt 0:00:57]} b4 {[%emt 0:08:01]} 10. Nb1 {[%emt 0:00:18]} e5 {[%emt 0:12:10]} 11. Bxg7 {[%emt 0:03:25]} Kxg7 {[%emt 0:00:11]} 12. dxe5 {[%emt 0:34:26]} dxe5 {[%emt 0:01:27]} 13. h5 {[%emt 0:04:28]} Ba6 {[%emt 0:23:36]} 14. hxg6 {[%emt 0:01:53]} fxg6 {[%emt 0:00:17]} 15. Qh6+ {[%emt 0:00:33]} Kg8 {[%emt 0:00:49]} 16. Nh3 {[%emt 0:02:23]} Rd8 {[%emt 0:06:22]} 17. Bxa6 {[%emt 0:08:36]} Nxa6 {[%emt 0:01:13]} 18. Qh4 {[%emt 0:08:35]} Rxd1+ {[%emt 0:02:07]} 19. Rxd1 {[%emt 0:00:06]} Rf8 {[%emt 0:03:08]} 20. Ng5 {[%emt 0:00:37]} Nc5 {[%emt 0:01:44]} 21. Qg3 {[%emt 0:05:38]} Qc7 {[%emt 0:00:37]} 22. Nd2 {[%emt 0:02:55]} Nh5 {[%emt 0:01:16]} 23. Qh2 {[%emt 0:01:37]} Qe7 {[%emt 0:00:19]} 24. Nh3 {[%emt 0:01:17]} Nf4 {[%emt 0:00:35]} 25. Nxf4 {[%emt 0:06:11]} exf4 {[%emt 0:00:05]} 26. Qg1 {[%emt 0:09:03]} Rd8 {[%emt 0:01:45]} 27. Nc4 {[%emt 0:01:12]} Rxd1+ {[%emt 0:00:40]} 28. Qxd1 {[%emt 0:00:35]} Qd7 {[%emt 0:00:49]} 29. Ne5 {[%emt 0:01:16]} Qe6 {[%emt 0:00:40]} 30. Qd8+ {[%emt 0:05:05]} Kg7 {[%emt 0:00:09]} 31. Qc7+ {[%emt 0:00:06]} Kh6 {[%emt 0:00:17]} 32. Ng4+ {[%emt 0:00:35]} Kg5 {[%emt 0:00:30]} 33. Qxh7 {[%emt 0:01:17]} Nxe4 {[%emt 0:00:57]} 34. Qxa7 {[%emt 0:01:28]} Nf6 {[%emt 0:01:15]} 35. Qc5+ {[%emt 0:00:35]} Nd5 {[%emt 0:00:22]} 36. Qf2 {[%emt 0:00:37]} Ne3 {[%emt 0:00:55]} 37. Nxe3 {[%emt 0:00:34]} fxe3 {[%emt 0:00:16]} 38. Qg3+ {[%emt 0:00:10]} Kh5 {[%emt 0:00:54]} 39. Qh3+ {[%emt 0:00:36]} Qxh3 {[%emt 0:00:14]} 40. gxh3 {[%emt 0:00:01]} Kh4 {[%emt 0:00:45]} 41. Kd1 {[%emt 0:30:02]} Kxh3 {[%emt 0:30:39]} 42. Ke2 {[%emt 0:00:02]} 1-0

[Event "DLM Youth 2024"]
[Site "Tuebingen"]
[Date "2024.10.05"]
[Round "5"]
[White "Mukazhanov, Mansur"]
[Black "Sun, Christopher"]
[Result "0-1"]
[ECO "C18"]
[WhiteElo "1894"]
[BlackElo "1711"]
[Annotator "NA RC"]
[PlyCount "99"]
[EventDate "2024.10.03"]
[EventType "team-swiss"]
[EventRounds "7"]
[EventCountry "GER"]
[SourceTitle "playchess.com"]
[Source "ChessBase"]
[SourceQuality "1"]
[TimeControl "40/5400+30:1800+30"]

1. e4 {[%emt 0:00:03]} e6 {[%emt 0:00:04]} 2. d4 {[%emt 0:00:05]} d5 {[%emt 0:00:02]} 3. Nc3 {[%emt 0:00:10]} Bb4 {[%emt 0:00:15]} 4. e5 {[%emt 0:00:06]} c5 {[%emt 0:00:03]} 5. a3 {[%emt 0:00:06]} Bxc3+ {[%emt 0:00:14]} 6. bxc3 {[%emt 0:00:04]} Qa5 {[%emt 0:00:19]} 7. Bd2 {[%emt 0:00:06]} Qa4 {[%emt 0:00:22]} 8. Qg4 {[%emt 0:00:22]} Kf8 {[%emt 0:00:08]} 9. Qh4 {[%emt 0:05:58] C18: French: 3 Nc3 Bb4: Main line: 7 h4 and 7 Qg4.} Nc6 {[%emt 0:01:08]} 10. Nf3 {[%emt 0:01:34]} Qxc2 {[%emt 0:02:26]} 11. dxc5 {[%emt 0:00:20]} Nge7 {[%emt 0:05:29]} 12. Qf4 {[%emt 0:12:10]} Ng6 $11 {[%emt 0:02:16]} 13. Qe3 {[%emt 0:00:07]} Qb2 {[%emt 0:04:35]} 14. Rc1 {[%emt 0:00:31]} Qxa3 {[%emt 0:02:36]} 15. Bb5 {[%emt 0:00:20]} Qa5 {[%emt 0:12:49]} (15... Nge7 $11) 16. Bxc6 {[%emt 0:04:02]} bxc6 {[%emt 0:01:01]} 17. c4 {[%emt 0:00:29]} Qc7 {[%emt 0:03:17]} 18. cxd5 {[%emt 0:00:15]} exd5 {[%emt 0:00:31]} 19. O-O {[%emt 0:00:07]} Ba6 {[%emt 0:02:31]} 20. Rfe1 {[%emt 0:00:12]} Re8 {[%emt 0:06:35]} 21. Qd4 {[%emt 0:08:24]} h6 {[%emt 0:02:47]} 22. Ra1 {[%emt 0:02:12]} Bb5 {[%emt 0:01:31]} 23. Qg4 {[%emt 0:01:24]} a6 {[%emt 0:17:29]} 24. e6 {[%emt 0:02:27]} Qc8 {[%emt 0:03:30]} 25. exf7 {[%emt 0:03:52]} Rxe1+ {[%emt 0:00:58]} 26. Rxe1 {[%emt 0:00:18]} Qxg4 {[%emt 0:00:30]} 27. Re8+ {[%emt 0:00:50]} Kxf7 {[%emt 0:00:08]} 28. Rxh8 {[%emt 0:00:08]} Nxh8 {[%emt 0:00:06]} 29. Ne5+ {[%emt 0:00:04]} Ke7 {[%emt 0:00:42]} 30. Nxg4 {[%emt 0:00:18]} Ng6 {[%emt 0:01:12]} 31. f4 {[%emt 0:00:56]} Ke6 {[%emt 0:03:43]} 32. g3 {[%emt 0:00:49]} d4 {[%emt 0:01:31]} 33. Nf2 {[%emt 0:00:51]} Kd5 {[%emt 0:00:48]} 34. Ng4 {[%emt 0:04:25]} h5 {[%emt 0:01:48]} 35. Nf2 {[%emt 0:02:28]} Kxc5 {[%emt 0:00:28]} 36. f5 {[%emt 0:02:14]} Ne7 {[%emt 0:04:35]} 37. f6 {[%emt 0:00:49]} gxf6 {[%emt 0:00:57]} 38. Ne4+ {[%emt 0:00:10]} Kc4 {[%emt 0:00:54]} 39. Nxf6 {[%emt 0:00:23]} Kd3 {[%emt 0:01:16]} 40. Ba5 {[%emt 0:00:42]} Kc2 {[%emt 0:01:50]} 41. Bb4 {[%emt 0:32:34]} d3 {[%emt 0:33:06]} 42. Ne4 {[%emt 0:01:17]} Nd5 {[%emt 0:01:15]} 43. Be1 {[%emt 0:02:46]} c5 {[%emt 0:01:26]} 44. Nxc5 {[%emt 0:01:13]} d2 {[%emt 0:00:49]} 45. Bxd2 {[%emt 0:00:04]} Kxd2 {[%emt 0:00:10]} 46. Kg2 {[%emt 0:00:03]} Ke3 {[%emt 0:03:30]} 47. Nxa6 {[%emt 0:01:51]} Bxa6 {[%emt 0:00:18]} 48. g4 {[%emt 0:00:13]} hxg4 {[%emt 0:00:30]} 49. Kg3 {[%emt 0:00:18]} Bc8 {[%emt 0:00:22]} 50. Kg2 {[%emt 0:01:11]} 0-1